fUST/lending_fUST_20240907
["ID","MTS","AMOUNT","RATE_DAILY","PERIOD"]
[337488272,1725696651027,-500.0,0.00047397,120]
[337488273,1725696651036,-500.0,0.00047397,120]
[337488274,1725696651045,-500.0,0.00047397,120]
[337488275,1725696651054,-500.0,0.00047397,120]
[337488276,1725696651063,-500.0,0.00047397,120]
[337488277,1725696651073,-500.0,0.00047397,120]
[337488278,1725696651081,-500.0,0.00047397,120]
[337488279,1725696651090,-500.0,0.00047397,120]
[337488280,1725696651099,-500.0,0.00047397,120]
[337488281,1725696651108,-500.0,0.00047397,120]
[337488282,1725696651117,-500.0,0.00047397,120]
[337488283,1725696651128,-289.38526198,0.00047397,120]
[337488284,1725696651138,-500.0,0.00047397,120]
[337488285,1725696651148,-232.37328655,0.00047397,120]
[337488286,1725696651157,-500.0,0.00047397,120]
[337488287,1725696651166,-524.63,0.00047397,120]
[337488288,1725696651175,-500.0,0.00047397,120]
[337488289,1725696651184,-491.07560357,0.00047397,120]
[337488290,1725696651193,-500.0,0.00047397,120]
[337488291,1725696651202,-500.0,0.00047397,120]
[337488292,1725696651211,-500.0,0.00047397,120]
[337488293,1725696651220,-500.0,0.00047397,120]
[337488294,1725696651229,-231.7944995,0.00047397,120]
[337488295,1725696651238,-500.0,0.00047397,120]
[337488296,1725696651247,-419.15,0.00047397,120]
[337488297,1725696651256,-468.28316641,0.00047397,120]
[337488302,1725696849881,151.0,0.0003,120]
[337488305,1725697503843,1424.64732572,0.000325,2]
[337488307,1725697539130,-251.1747401,0.0003345,3]
[337488308,1725697539151,-448.8973773,0.00033498,2]
[337488309,1725697539173,-177.816933,0.00033592,2]
[337488310,1725697539193,-231.8596939,0.00033683,2]
[337488311,1725697539214,-206.15471349,0.00034112,2]
[337488312,1725697628106,-328.44817634,0.00034082,2]
[337488313,1725697630147,-71.55182366,0.00034082,2]
[337488314,1725697630168,-400.0,0.00034082,2]
[337488315,1725697630193,-604.52112379,0.00034083,2]
[337488316,1725697631140,-11156.57988108,0.00034083,2]
[337488317,1725697637383,250.0,0.00031529,2]
[337488318,1725697637590,250.0,0.00031615,2]
[337488319,1725697637823,250.0,0.00031702,2]
[337488320,1725697638223,250.0,0.00031788,2]
[337488321,1725697638495,250.0,0.00031875,2]
[337488322,1725697638749,250.0,0.00031961,2]
[337488323,1725697639054,250.0,0.00032047,2]
[337488324,1725697639159,250.0,0.00032134,2]
[337488325,1725697639364,250.0,0.0003222,2]
[337488326,1725697639585,250.0,0.00032307,2]
[337488327,1725697639786,250.0,0.00032393,2]
[337488328,1725697640000,250.0,0.0003248,2]
[337488329,1725697640095,-594.05121714,0.00034083,2]
[337488330,1725697641088,-250.0,0.00032566,2]
[337488331,1725697641110,-250.0,0.00032653,2]
[337488332,1725697641132,-250.0,0.00032739,2]
[337488333,1725697641154,-250.0,0.00032826,2]
[337488334,1725697641177,-5416.90650682,0.00034083,2]
[337488335,1725697643104,-250.0,0.00032912,2]
[337488336,1725697643128,-250.0,0.00032999,2]
[337488337,1725697643152,-250.0,0.00033085,2]
[337488338,1725697643175,-250.0,0.00033172,2]
[337488339,1725697643199,-583.53346959,0.00034083,2]
[337488340,1725697644113,-191.72498826,0.00034083,2]
[337488346,1725697723329,1017.62172742,0.00020377,2]
[337488347,1725697724282,4406.73094686,0.00014,2]
[337488348,1725697724308,1555.64640585,0.00014,2]
[337488349,1725697724973,8444.35359415,0.0001999,2]
[337488350,1725697724998,10000.0,0.0001999,2]
[337488351,1725697725027,10000.0,0.0001999,2]
[337488352,1725697725053,10000.0,0.0001999,2]
[337488353,1725697725080,113583.93913109,0.0001999,2]
[337488354,1725697725411,155.42995864,0.0002,2]
[337488356,1725697745109,-173.5777924,0.00033488,2]
[337488357,1725697745133,-6352.68281332,0.00034083,2]
[337488358,1725697745153,-16671.5122566,0.00034153,62]
[337488359,1725697745174,-232.9556636,0.00034181,2]
[337488360,1725697745195,-596.67925192,0.00034331,30]
[337488361,1725697745215,-2249.86903693,0.00034671,2]
[337488362,1725697745237,-568.195,0.00035803,43]
[337488363,1725697745258,-1318.1623018,0.0003854,2]
[337488364,1725697745279,-3333.333333,0.00041096,2]
[337488365,1725697745300,-306.0,0.00041197,2]
[337488366,1725697745320,-153.0,0.00041197,2]
[337488367,1725697745340,-306.0,0.00041197,2]
[337488368,1725697745359,-153.0,0.00041197,2]
[337488369,1725697745379,-153.0,0.00041197,2]
[337488370,1725697745402,-1899.35677105,0.00041581,28]
[337488371,1725697745423,-217.53207558,0.00041681,2]
[337488372,1725697745443,-4379.74,0.00041726,3]
[337488373,1725697745468,-4121.81992243,0.00041727,5]
[337488374,1725697745489,-780.31054176,0.00041736,31]
[337488375,1725697745514,-500.0,0.00041736,7]
[337488376,1725697745537,-780.31054176,0.00041736,31]
[337488377,1725697745564,-500.0,0.00041736,7]
[337488378,1725697745586,-780.31054176,0.00041736,31]
[337488379,1725697745608,-780.31054176,0.00041736,31]
[337488380,1725697745630,-780.31054176,0.00041736,31]
[337488381,1725697745650,-780.31054176,0.00041736,31]
[337488382,1725697745672,-780.31054176,0.00041736,31]
[337488383,1725697745693,-780.31054176,0.00041736,31]
[337488384,1725697745714,-780.31054176,0.00041736,31]
[337488385,1725697745735,-780.31054176,0.00041736,31]
[337488386,1725697745756,-780.31054176,0.00041736,31]
[337488387,1725697745777,-780.31054176,0.00041736,31]
[337488388,1725697745802,-780.31054176,0.00041736,31]
[337488389,1725697745825,-780.31054176,0.00041736,31]
[337488390,1725697745845,-780.31054176,0.00041736,31]
[337488391,1725697745864,-780.31054176,0.00041736,31]
[337488392,1725697745885,-780.31054176,0.00041736,31]
[337488393,1725697745909,-780.31054176,0.00041736,31]
[337488394,1725697745931,-780.31054176,0.00041736,31]
[337488395,1725697745952,-780.31054176,0.00041736,31]
[337488396,1725697745973,-780.31054176,0.00041736,31]
[337488397,1725697745993,-780.31054176,0.00041736,31]
[337488398,1725697746018,-780.31054176,0.00041736,31]
[337488399,1725697746040,-780.31054176,0.00041736,31]
[337488400,1725697746061,-780.31054176,0.00041736,31]
[337488401,1725697746081,-780.31054176,0.00041736,31]
[337488402,1725697746104,-780.31054176,0.00041736,31]
[337488403,1725697746126,-780.31054176,0.00041736,31]
[337488404,1725697746147,-780.31054176,0.00041736,31]
[337488405,1725697746169,-780.31054176,0.00041736,31]
[337488406,1725697746190,-780.31054176,0.00041736,31]
[337488407,1725697746217,-780.31054176,0.00041736,31]
[337488408,1725697746239,-780.31054176,0.00041736,31]
[337488409,1725697746260,-780.31054176,0.00041736,31]
[337488410,1725697746282,-780.31054176,0.00041736,31]
[337488411,1725697746304,-780.31054176,0.00041736,31]
[337488412,1725697746330,-780.31054176,0.00041736,31]
[337488413,1725697746351,-780.31054176,0.00041736,31]
[337488414,1725697746371,-780.31054176,0.00041736,31]
[337488415,1725697746392,-780.31054176,0.00041736,31]
[337488416,1725697746413,-780.31054176,0.00041736,31]
[337488417,1725697746434,-780.31054176,0.00041736,31]
[337488418,1725697746455,-780.31054176,0.00041736,31]
[337488419,1725697746477,-780.31054176,0.00041736,31]
[337488420,1725697746497,-780.31054176,0.00041736,31]
[337488421,1725697746518,-780.31054176,0.00041736,31]
[337488422,1725697746539,-780.31054176,0.00041736,31]
[337488423,1725697746561,-780.31054176,0.00041736,31]
[337488424,1725697746582,-780.31054176,0.00041736,31]
[337488425,1725697746604,-780.31054176,0.00041736,31]
[337488426,1725697746625,-780.31054176,0.00041736,31]
[337488427,1725697746645,-780.31054176,0.00041736,31]
[337488428,1725697746666,-780.31054176,0.00041736,31]
[337488429,1725697746687,-780.31054176,0.00041736,31]
[337488430,1725697746710,-780.31054176,0.00041736,31]
[337488431,1725697746732,-780.31054176,0.00041736,31]
[337488432,1725697746756,-780.31054176,0.00041736,31]
[337488433,1725697746779,-780.31054176,0.00041736,31]
[337488434,1725697746802,-780.31054176,0.00041736,31]
[337488435,1725697746825,-559.2508503,0.00041736,31]
[337488436,1725697811093,151.0,0.0003,120]
[337488465,1725697831700,-221.05969146,0.00041736,31]
[337488468,1725697831710,-780.31054176,0.00041736,31]
[337488470,1725697831721,-780.31054176,0.00041736,31]
[337488472,1725697831731,-780.31054176,0.00041736,31]
[337488473,1725697831740,-780.31054176,0.00041736,31]
[337488474,1725697831750,-780.31054176,0.00041736,31]
[337488475,1725697831761,-780.31054176,0.00041736,31]
[337488476,1725697831773,-780.31054176,0.00041736,31]
[337488477,1725697831782,-780.31054176,0.00041736,31]
[337488478,1725697831792,-772.50743632,0.00041736,31]
[337488479,1725697831801,-772.50743632,0.00041736,31]
[337488480,1725697831812,-772.50743632,0.00041736,31]
[337488481,1725697831823,-772.50743632,0.00041736,31]
[337488482,1725697831833,-772.50743632,0.00041736,31]
[337488483,1725697831842,-772.50743632,0.00041736,31]
[337488484,1725697831853,-772.50743632,0.00041736,31]
[337488485,1725697831862,-772.50743632,0.00041736,31]
[337488486,1725697831871,-772.50743632,0.00041736,31]
[337488487,1725697831881,-772.50743632,0.00041736,31]
[337488488,1725697831890,-772.50743632,0.00041736,31]
[337488490,1725697831899,-772.50743632,0.00041736,31]
[337488492,1725697831908,-587.00101058,0.00041736,31]
[337488494,1725697831923,-185.50642574,0.00041736,31]
[337488496,1725697831932,-586.03357426,0.00041736,31]
[337488505,1725697832003,-186.47386206,0.00041736,31]
[337488507,1725697832013,-518.94364568,0.00041736,31]
[337488553,1725697837947,-146.21149531,0.0003526,7]
[337488559,1725697838064,-3.78850469,0.0003526,7]
[337488560,1725697838074,-8243.63984486,0.00041749,5]
[337488561,1725697838083,-2101.84651328,0.00041781,2]
[337488562,1725697838814,-21.30277647,0.00041781,2]
[337488563,1725697838827,-1210.18404325,0.00041781,2]
[337488564,1725697838836,-3333.333333,0.00042466,2]
[337488565,1725697838846,-153.0,0.00042701,120]
[337488566,1725697838855,-153.0,0.00042701,120]
[337488567,1725697838865,-153.0,0.00042701,120]
[337488568,1725697838874,-153.0,0.00042701,120]
[337488569,1725697838883,-153.0,0.00042701,120]
[337488570,1725697838892,-153.0,0.00042701,120]
[337488571,1725697838902,-153.0,0.00042701,120]
[337488572,1725697838911,-153.0,0.00042701,120]
[337488573,1725697838921,-153.0,0.00042701,120]
[337488574,1725697838930,-153.0,0.00042701,120]
[337488575,1725697838939,-153.0,0.00042701,120]
[337488576,1725697838948,-153.0,0.00042701,120]
[337488577,1725697838957,-223.0,0.00045,90]
[337488578,1725697838965,-151.0,0.00045014,120]
[337488579,1725697838975,-3460.81051885,0.000455,120]
[337488580,1725697838985,-150.112233,0.000463,16]
[337488581,1725697838993,-3462.5428148,0.00046474,2]
[337488582,1725697839003,-8243.63984486,0.0004648,5]
[337488583,1725697839012,-42.83032947,0.00046499,120]
[337488591,1725697839841,-457.16967053,0.00046499,120]
[337488592,1725697839851,-500.0,0.00046499,120]
[337488594,1725697839861,-500.0,0.00046499,120]
[337488595,1725697839871,-500.0,0.00046499,120]
[337488596,1725697839881,-500.0,0.00046499,120]
[337488597,1725697839891,-500.0,0.00046499,120]
[337488598,1725697839902,-500.0,0.00046499,120]
[337488599,1725697839911,-500.0,0.00046499,120]
[337488600,1725697839921,-500.0,0.00046499,120]
[337488601,1725697839930,-500.0,0.00046499,120]
[337488602,1725697839940,-500.0,0.00046499,120]
[337488603,1725697839951,-500.0,0.00046499,120]
[337488604,1725697839960,-500.0,0.00046499,120]
[337488605,1725697839970,-500.0,0.00046499,120]
[337488606,1725697839980,-500.0,0.00046499,120]
[337488607,1725697839989,-500.0,0.00046499,120]
[337488608,1725697839999,-500.0,0.00046499,120]
[337488609,1725697840009,-500.0,0.00046499,120]
[337488610,1725697840017,-500.0,0.00046499,120]
[337488611,1725697840029,-500.0,0.00046499,120]
[337488612,1725697840038,-500.0,0.00046499,120]
[337488613,1725697840051,-500.0,0.00046499,120]
[337488614,1725697840060,-272.30062355,0.00046499,120]
[337488615,1725697840069,-500.0,0.00046499,120]
[337488616,1725697840079,-500.0,0.00046499,120]
[337488617,1725697840089,-410.1087154,0.000465,120]
[337488618,1725697840098,-410.1087154,0.000465,120]
[337488619,1725697840108,-820.1498486,0.000465,120]
[337488620,1725697840120,-410.1087154,0.000465,120]
[337488621,1725697840129,-7199.464,0.000465,45]
[337488622,1725697840139,-7301.01843678,0.000465,7]
[337488623,1725697840150,-4109.5,0.00046554,3]
[337488624,1725697840160,-3424.59,0.00046554,3]
[337488625,1725697840169,-8243.63984486,0.00046555,5]
[337488626,1725697840179,-11008.16232562,0.00046564,2]
[337488631,1725697842803,-170.983824,0.00038946,120]
[337488632,1725697842814,-1754.8937024,0.00046564,2]
[337488682,1725697845960,-379.42218387,0.00046564,2]
[337488691,1725697846198,-1605.73800228,0.00046564,2]
[337488693,1725697935441,51.35127363,0.0003,120]
[337488700,1725698437010,4144.96320606,0.0002001,2]
[337488708,1725698732153,-267.96826148,0.00028209,2]
[337488712,1725698827107,-172.857521,0.00027633,2]
[337488713,1725698827130,-250.0,0.00028116,2]
[337488714,1725698827152,-250.0,0.00028193,2]
[337488715,1725698827174,-300.0,0.00028209,2]
[337488716,1725698827203,-118.3782654,0.0002821,2]
[337488720,1725698956107,-293.9847035,0.00027502,2]
[337488721,1725698956129,-300.0,0.00028209,2]
[337488722,1725698956151,-24781.6217346,0.0002821,2]
[337488723,1725698956175,-250.0,0.0002827,2]
[337488724,1725698956201,-250.0,0.00028348,2]
[337488725,1725698956223,-250.0,0.00028425,2]
[337488726,1725698956246,-250.0,0.00028502,2]
[337488727,1725698956268,-250.0,0.00028579,2]
[337488728,1725698956289,-250.0,0.00028656,2]
[337488729,1725698956310,-250.0,0.00028733,2]
[337488730,1725698956333,-250.0,0.0002881,2]
[337488731,1725698956355,-250.0,0.00028887,2]
[337488732,1725698956378,-250.0,0.00028965,2]
[337488733,1725698956403,-250.0,0.00029042,2]
[337488734,1725698956430,-1962.81089211,0.0002905,2]
[337488735,1725698956456,-250.0,0.00029119,2]
[337488736,1725698956480,-319.93061091,0.0002915,5]
[337488737,1725698956500,-500.0,0.0002915,5]
[337488738,1725698956521,-500.0,0.0002915,2]
[337488739,1725698956540,-284.86025039,0.0002915,5]
[337488740,1725698956562,-250.0,0.00029196,2]
[337488741,1725698956584,-250.0,0.00029273,2]
[337488742,1725698956604,-250.0,0.0002935,2]
[337488743,1725698956625,-250.0,0.00029427,2]
[337488744,1725698956647,-250.0,0.00029504,2]
[337488745,1725698956669,-250.0,0.00029582,2]
[337488746,1725698956690,-502.35549089,0.00029698,2]
[337488747,1725698956711,-206.48089146,0.0002999,2]
[337488748,1725698956734,-99.64872637,0.0003,120]
[337488749,1725698956755,-151.0,0.0003,120]
[337488750,1725698956776,-24023.46418853,0.0003,7]
[337488751,1725698961130,-12719.21304347,0.0003,7]
[337488752,1725698961152,-420.0,0.00031029,2]
[337488753,1725698961174,-485.0,0.00034132,2]
[337488754,1725698961194,-201.01962436,0.00034267,2]
[337488755,1725698961214,-170.144386,0.00034663,2]
[337488756,1725698961235,-181.589517,0.00035616,120]
[337488757,1725698961257,-500.0,0.0003582,5]
[337488759,1725698970238,-923.224,0.00036934,46]
[337488760,1725698970258,-324.20532285,0.000396,2]
[337488761,1725698971150,-98.0028546,0.000396,2]
[337488762,1725698971178,-201.7538101,0.000397,5]
[337488763,1725698971199,-385.78733516,0.00039726,15]
[337488800,1725699031935,-114.21266484,0.00039726,15]
[337488802,1725699031945,-500.0,0.00039726,15]
[337488804,1725699031956,-254.27733516,0.00039726,15]
[337488806,1725699031968,-245.72266484,0.00039726,15]
[337488808,1725699031978,-500.0,0.00039726,15]
[337488810,1725699031990,-500.0,0.00039726,15]
[337488812,1725699031999,-500.0,0.00039726,15]
[337488813,1725699032009,-500.0,0.00039726,15]
[337488814,1725699032018,-500.0,0.00039726,15]
[337488815,1725699032027,-500.0,0.00039726,15]
[337488816,1725699032037,-500.0,0.00039726,15]
[337488817,1725699032048,-399.24054122,0.00039726,15]
[337488818,1725699032059,-100.75945878,0.00039726,15]
[337488819,1725699032069,-500.0,0.00039726,15]
[337488820,1725699032079,-500.0,0.00039726,15]
[337488821,1725699032089,-500.0,0.00039726,15]
[337488822,1725699032098,-500.0,0.00039726,15]
[337488823,1725699032108,-500.0,0.00039726,15]
[337488824,1725699032117,-500.0,0.00039726,15]
[337488825,1725699032127,-500.0,0.00039726,15]
[337488826,1725699032138,-500.0,0.00039726,15]
[337488827,1725699032148,-500.0,0.00039726,15]
[337488828,1725699032158,-360.84792007,0.00039726,15]
[337488829,1725699032167,-500.0,0.00039726,15]
[337488830,1725699032177,-500.0,0.00039726,15]
[337488831,1725699032186,-500.0,0.00039726,15]
[337488832,1725699032196,-500.0,0.000398,5]
[337488833,1725699032205,-151.0,0.0004,120]
[337488834,1725699032214,-1000.0,0.00040348,5]
[337488835,1725699032225,-410.1493314,0.00040363,2]
[337488836,1725699032236,-820.1221933,0.00040363,2]
[337488837,1725699032246,-1514.505792,0.00041096,2]
[337488838,1725699032257,-410.1493314,0.00041185,2]
[337488839,1725699032266,-410.1493314,0.00041185,2]
[337488840,1725699032275,-388.53792797,0.0004135,10]
[337488841,1725699032285,-1514.505792,0.00041781,2]
[337488842,1725699032294,-153.0,0.00041918,120]
[337488843,1725699032303,-153.0,0.00041918,120]
[337488844,1725699032313,-153.0,0.00041918,120]
[337488845,1725699032322,-153.0,0.00041918,120]
[337488846,1725699032332,-153.0,0.00041918,120]
[337488847,1725699032341,-153.0,0.00041918,120]
[337488848,1725699032350,-153.0,0.00041918,120]
[337488849,1725699032359,-153.0,0.00041918,120]
[337488850,1725699032369,-153.0,0.00041918,120]
[337488851,1725699032379,-153.0,0.00041918,120]
[337488852,1725699032388,-153.0,0.00041918,120]
[337488853,1725699032397,-153.0,0.00041918,120]
[337488854,1725699032407,-153.0,0.00041918,120]
[337488855,1725699032417,-468.82,0.00042456,30]
[337488856,1725699032428,-1514.505792,0.00042466,2]
[337488857,1725699032437,-223.0,0.00045,90]
[337488858,1725699032446,-5388.41663674,0.0004545,5]
[337488913,1725699038760,-5946.31069316,0.0004545,5]
[337488914,1725699038769,-2923.97065026,0.0004545,5]
[337488915,1725699038781,-1300.79873839,0.0004545,5]
[337488916,1725699038790,-500.0,0.00045459,120]
[337488917,1725699038799,-500.0,0.00045459,120]
[337488918,1725699038808,-317.87199112,0.00045459,120]
[337488919,1725699038818,-22669.4546597,0.0004546,5]
[337488920,1725699038949,-7702.98469314,0.0004546,5]
[337488921,1725699038966,-713.44090015,0.0004546,5]
[337488922,1725699038978,-33.11318401,0.0004546,5]
[337488923,1725699038993,-7226.4,0.00045489,3]
[337488924,1725699039003,-6022.0,0.00045489,3]
[337488925,1725699039013,-8671.68,0.0004549,3]
[337488926,1725699039023,-22651.48264,0.00045499,2]
[337488927,1725699039032,-5000.0,0.000455,120]
[337488928,1725699039042,-5000.0,0.000455,120]
[337488929,1725699039051,-3039.47243327,0.000455,120]
[337488930,1725699039060,-153.0,0.00045777,120]
[337488931,1725699039069,-1000.0,0.0004589,2]
[337488932,1725699039079,-6810.22,0.0004596,3]
[337488933,1725699039088,-6206.15644885,0.0004598,61]
[337488934,1725699039098,-45338.9093195,0.0004598,5]
[337488935,1725699039108,-16899.0775546,0.0004598,5]
[337488936,1725699039117,-11334.7273299,0.0004599,5]
[337488937,1725699039126,-4224.76938865,0.0004599,5]
[337488938,1725699039135,-500.0,0.00045999,120]
[337488939,1725699039145,-500.0,0.00045999,120]
[337488940,1725699039156,-390.85065112,0.00045999,120]
[337488941,1725699039165,-34855.05375664,0.00046,120]
[337488957,1725699040127,-2640.7586094,0.00046,120]
[337488958,1725699040140,-31575.18763396,0.00046,120]
[337488959,1725699040151,-462.25443472,0.00046,2]
[337488960,1725699040161,-3123.92492678,0.00046139,2]
[337488961,1725699040170,-3123.92492679,0.00046319,2]
[337488962,1725699040181,-462.25443469,0.00046393,2]
[337488963,1725699040191,-1127.36448621,0.00046549,2]
[337488964,1725699040201,-11334.7273299,0.00046555,5]
[337488965,1725699040212,-3899.51305256,0.00046555,5]
[337488966,1725699040225,-325.25633609,0.00046555,5]
[337488967,1725699040235,-916.49499088,0.00046555,5]
[337488968,1725699040248,-16304.9452,0.00046555,5]
[337488969,1725699040260,-28117.46912862,0.00046555,5]
[337488970,1725699040270,-11283.79953455,0.00046555,5]
[337488986,1725699042969,-341.66,0.00046555,5]
[337489290,1725699046065,-5273.61802005,0.00046555,5]
[337489292,1725699046076,-151.0,0.00046565,120]
[337489295,1725699046087,-151.0,0.00046565,120]
[337489297,1725699046097,-157.757431,0.00046565,120]
[337489299,1725699046106,-151.0,0.00046565,120]
[337489301,1725699046115,-451.034016,0.00046565,120]
[337489302,1725699046124,-451.034016,0.00046565,120]
[337489304,1725699046134,-451.034016,0.00046565,120]
[337489306,1725699046143,-451.034016,0.00046565,120]
[337489308,1725699046153,-151.0,0.00046565,120]
[337489310,1725699046163,-151.0,0.00046565,120]
[337489312,1725699046172,-151.0,0.00046565,120]
[337489314,1725699046181,-151.0,0.00046565,120]
[337489316,1725699046191,-151.0,0.00046565,7]
[337489318,1725699046201,-153.800264,0.00046565,7]
[337489320,1725699046211,-493.436106,0.00046565,90]
[337489322,1725699046220,-493.436106,0.00046565,90]
[337489325,1725699046230,-151.0,0.00046565,120]
[337489327,1725699046239,-151.0,0.00046565,120]
[337489329,1725699046250,-151.0,0.00046565,120]
[337489331,1725699046260,-151.0,0.00046565,120]
[337489333,1725699046269,-151.0,0.00046565,120]
[337489335,1725699046278,-151.0,0.00046565,120]
[337489337,1725699046287,-392.490849,0.00046565,120]
[337489339,1725699046296,-392.490849,0.00046565,120]
[337489340,1725699046306,-392.490849,0.00046565,120]
[337489343,1725699046315,-392.490849,0.00046565,120]
[337489345,1725699046324,-584.035126,0.00046565,120]
[337489347,1725699046334,-584.035126,0.00046565,120]
[337489349,1725699046344,-196.062081,0.00046565,120]
[337489351,1725699046353,-196.062081,0.00046565,120]
[337489353,1725699046362,-584.035126,0.00046565,120]
[337489355,1725699046372,-584.035126,0.00046565,120]
[337489356,1725699046381,-196.062081,0.00046565,120]
[337489358,1725699046390,-196.062081,0.00046565,120]
[337489360,1725699046400,-663.718783,0.00046565,120]
[337489362,1725699046409,-663.718783,0.00046565,120]
[337489364,1725699046419,-663.718783,0.00046565,120]
[337489367,1725699046431,-663.718783,0.00046565,120]
[337489369,1725699046440,-151.137453,0.00046565,2]
[337489371,1725699046450,-538.769431,0.00046565,120]
[337489373,1725699046459,-151.0,0.00046565,120]
[337489375,1725699046469,-538.769431,0.00046565,120]
[337489376,1725699046478,-151.0,0.00046565,120]
[337489378,1725699046488,-263.512288,0.00046565,120]
[337489380,1725699046497,-263.512288,0.00046565,120]
[337489382,1725699046507,-151.0,0.00046565,120]
[337489384,1725699046516,-261.666272,0.00046565,120]
[337489386,1725699046525,-261.666272,0.00046565,120]
[337489388,1725699046535,-151.0,0.00046565,120]
[337489390,1725699046545,-271.932796,0.00046565,120]
[337489392,1725699046554,-271.932796,0.00046565,120]
[337489394,1725699046563,-151.0,0.00046565,120]
[337489397,1725699046573,-151.0,0.00046565,120]
[337489399,1725699046582,-163.778123,0.00046565,120]
[337489401,1725699046592,-151.0,0.00046565,120]
[337489403,1725699046601,-163.778123,0.00046565,120]
[337489405,1725699046610,-230.835142,0.00046565,120]
[337489407,1725699046620,-151.0,0.00046565,120]
[337489409,1725699046629,-412.997988,0.00046565,120]
[337489411,1725699046638,-412.997988,0.00046565,120]
[337489413,1725699046647,-151.0,0.00046565,120]
[337489415,1725699046656,-603.946477,0.00046565,120]
[337489417,1725699046666,-151.0,0.00046565,2]
[337489419,1725699046675,-603.946477,0.00046565,120]
[337489421,1725699046684,-151.0,0.00046565,120]
[337489423,1725699046693,-5018.33,0.00046565,3]
[337489425,1725699046702,-22669.4546597,0.00046565,5]
[337489427,1725699046711,-8449.5387773,0.00046565,5]
[337489429,1725699046721,-532.0,0.00046574,30]
[337489431,1725699046731,-549.33962794,0.00046575,120]
[337489433,1725699046740,-500.0,0.00046575,120]
[337489435,1725699046750,-500.0,0.00046575,120]
[337489437,1725699046759,-587.33882488,0.00046575,120]
[337489439,1725699046768,-500.0,0.00046575,120]
[337489441,1725699046777,-528.74,0.00046575,120]
[337489443,1725699046786,-500.0,0.00046575,120]
[337489445,1725699046795,-500.0,0.00046575,120]
[337489447,1725699046804,-500.0,0.00046575,120]
[337489449,1725699046813,-500.0,0.00046575,120]
[337489451,1725699046822,-500.0,0.00046575,120]
[337489453,1725699046831,-559.82414744,0.00046575,120]
[337489455,1725699046840,-500.0,0.00046575,120]
[337489457,1725699046850,-500.0,0.00046575,120]
[337489460,1725699046859,-500.0,0.00046575,120]
[337489462,1725699046869,-500.0,0.00046575,120]
[337489464,1725699046878,-683.87,0.00046575,120]
[337489466,1725699046887,-500.0,0.00046575,120]
[337489468,1725699046896,-500.0,0.00046575,30]
[337489470,1725699046906,-500.0,0.00046575,120]
[337489472,1725699046915,-500.0,0.00046575,7]
[337489474,1725699046924,-500.0,0.00046575,120]
[337489476,1725699046933,-500.0,0.00046575,120]
[337489478,1725699046942,-500.0,0.00046575,120]
[337489480,1725699046951,-500.0,0.00046575,120]
[337489482,1725699046961,-377.05,0.00046575,120]
[337489484,1725699046970,-500.0,0.00046575,120]
[337489486,1725699046979,-500.0,0.00046575,120]
[337489488,1725699046989,-500.0,0.00046575,120]
[337489490,1725699046999,-500.0,0.00046575,120]
[337489492,1725699047009,-500.0,0.00046575,120]
[337489494,1725699047019,-500.0,0.00046575,120]
[337489496,1725699047030,-500.0,0.00046575,120]
[337489498,1725699047039,-500.0,0.00046575,120]
[337489500,1725699047048,-500.0,0.00046575,120]
[337489502,1725699047057,-500.0,0.00046575,120]
[337489504,1725699047067,-500.0,0.00046575,120]
[337489506,1725699047075,-500.0,0.00046575,120]
[337489508,1725699047084,-500.0,0.00046575,120]